{"text_format":"1","workbook":"xlsx","n_sheets":5,"sheets":["Sakuma lapa","KaseTmp","ZurTmp","Formats","Tiesibas"],"not_rendered":{"charts":0,"images":0,"macros":1,"external_links":0,"defined_names":9,"comments":3,"pivot_tables":0},"unopened":[],"bounds":{"document_bytes":16777216,"sheet_cells":100000,"rows_first":2000,"rows_last":500,"rows_between":2000,"halvings":0,"cell_chars":16384,"cell_head_chars":4096},"cells_cut":0,"cells_raw":0,"read":"whole","date_system":"1900"}

{"sheet":"Sakuma lapa","index":0,"n_rows":34,"n_cols":15,"rows_kept":34,"cut":false,"hidden":false,"merged":[[32,4,32,8],[33,4,33,8],[31,4,31,8],[32,1,32,3],[33,1,33,3],[13,3,13,4],[12,3,12,4],[11,3,11,4],[5,11,5,12],[1,1,1,2],[2,1,2,2],[3,1,3,2],[5,1,5,2],[5,3,5,4],[18,3,18,5],[17,3,17,5],[2,6,3,8],[1,6,1,8],[23,3,23,5],[22,3,22,5],[21,3,21,5],[20,3,20,5],[19,3,19,5],[10,3,10,4],[9,3,9,4],[8,3,8,4],[7,3,7,4],[6,3,6,4],[15,3,15,4],[14,3,14,4]]}
[]
[null,"PvnNr",null,null,null,null,"Grāmatveža piezīmes"]
[null,"No",null,"2025-01-01"]
[null,"Līdz",null,{"$f":"DATE(YEAR(D3),12,31)","v":"2025-12-31"}]
[]
[null,"Nr.",null,"Partnera nosaukums (Kase)",null,"Strūkturvienība","Kase","Seifs/Kase","Partneris",null,null,"Importēt",null,"No","Līdz"]
[null,null,"Kase 01",null,null,null,null,null,null,null,null,null,"Jan-1",{"$f":"DATE(YEAR($D$3),1,1)","v":"2025-01-01"},{"$f":"N7+14","v":"2025-01-15"}]
[null,null,"Kase 02",null,null,null,null,null,null,null,null,null,"Jan-2",{"$f":"O7+1","v":"2025-01-16"},{"$f":"DATE(YEAR(N8),MONTH(N8)+1,0)","v":"2025-01-31"}]
[null,null,"Kase 03",null,null,null,null,null,null,null,null,null,"Feb-1",{"$f":"O8+1","v":"2025-02-01"},{"$f":"N9+14","v":"2025-02-15"}]
[null,null,"Kase 04",null,null,null,null,null,null,null,null,null,"Feb-2","2025-02-16",{"$f":"DATE(YEAR(N10),MONTH(N10)+1,0)","v":"2025-02-28"}]
[null,null,"Kase 05",null,null,null,null,null,null,null,null,null,"Mar-1","2025-03-01",{"$f":"N11+14","v":"2025-03-15"}]
[null,null,"Kase 06",null,null,null,null,null,null,null,null,null,"Mar-2","2025-03-16",{"$f":"DATE(YEAR(N12),MONTH(N12)+1,0)","v":"2025-03-31"}]
[null,null,"Kase 07",null,null,null,null,null,null,null,null,null,"Apr-1","2025-04-01",{"$f":"N13+14","v":"2025-04-15"}]
[null,null,"Kase 08",null,null,null,null,null,null,null,null,null,"Apr-2","2025-04-16",{"$f":"DATE(YEAR(N14),MONTH(N14)+1,0)","v":"2025-04-30"}]
[null,null,"Kase 09",null,null,null,null,null,null,null,null,null,"Mai-1","2025-05-01",{"$f":"N15+14","v":"2025-05-15"}]
[null,null,"Kase 10",null,null,null,null,null,null,null,null,null,"Mai-2","2025-05-16",{"$f":"DATE(YEAR(N16),MONTH(N16)+1,0)","v":"2025-05-31"}]
[null,null,null,null,null,null,null,null,null,null,null,null,"Jun-1","2025-06-01",{"$f":"N17+14","v":"2025-06-15"}]
[null,null,null,"Konta nosaukums - Tildes Jumis",null,null,"Kods","Konts",null,null,null,null,"Jun-2","2025-06-16",{"$f":"DATE(YEAR(N18),MONTH(N18)+1,0)","v":"2025-06-30"}]
[null,null,null,null,null,null,"POS",null,null,null,null,null,"Jul-1","2025-07-01",{"$f":"N19+14","v":"2025-07-15"}]
[null,null,null,null,null,null,"DT",null,null,null,null,null,"Jul-2","2025-07-16",{"$f":"DATE(YEAR(N20),MONTH(N20)+1,0)","v":"2025-07-31"}]
[null,null,null,null,null,null,"DK_SAVAS",null,null,null,null,null,"Aug-1","2025-08-01",{"$f":"N21+14","v":"2025-08-15"}]
[null,null,null,null,null,null,"DK_CITI",null,null,null,null,null,"Aug-2","2025-08-16",{"$f":"DATE(YEAR(N22),MONTH(N22)+1,0)","v":"2025-08-31"}]
[null,null,null,null,null,null,"REALIZ",null,null,null,null,null,"Sep-1","2025-09-01",{"$f":"N23+14","v":"2025-09-15"}]
[null,null,null,null,null,null,"PVN",null,null,null,null,null,"Sep-2","2025-09-16",{"$f":"DATE(YEAR(N24),MONTH(N24)+1,0)","v":"2025-09-30"}]
[null,null,null,null,null,null,null,null,null,null,null,null,"Okt-1","2025-10-01",{"$f":"N25+14","v":"2025-10-15"}]
[null,null,null,null,null,null,null,null,null,null,null,null,"Okt-2","2025-10-16",{"$f":"DATE(YEAR(N26),MONTH(N26)+1,0)","v":"2025-10-31"}]
[null,null,null,null,null,null,null,null,null,null,null,null,"Nov-1","2025-11-01",{"$f":"N27+14","v":"2025-11-15"}]
[null,null,null,null,null,null,null,null,null,null,null,null,"Nov-2","2025-11-16",{"$f":"DATE(YEAR(N28),MONTH(N28)+1,0)","v":"2025-11-30"}]
[null,null,null,null,null,null,null,null,null,null,null,null,"Dec-1","2025-12-01",{"$f":"N29+14","v":"2025-12-15"}]
[null,null,null,null,null,null,null,null,null,null,null,null,"Dec-2","2025-12-16",{"$f":"DATE(YEAR(N30),MONTH(N30)+1,0)","v":"2025-12-31"}]
[]
[]
[null,"Kā ieslēgt makrosus:",null,null,"https://exceldarbariki.mozello.lv/produkti/instrukcijas/"]
[null,"Kā atbloķēt makrosus:",null,null,"https://exceldarbariki.mozello.lv/produkti/ka-atbloket-makrosus/"]

{"sheet":"KaseTmp","index":1,"n_rows":26,"n_cols":33,"rows_kept":26,"cut":false,"hidden":true,"merged":[[5,27,8,27],[6,19,7,20],[5,19,5,20],[6,10,8,10],[6,11,8,11],[6,12,8,12],[5,4,5,10],[5,11,5,18],[6,13,7,14],[6,15,7,16],[6,17,7,18],[7,6,7,7],[6,4,8,4],[6,5,8,5],[6,6,6,9],[2,1,3,2],[1,1,1,2],[5,1,8,1],[5,2,8,2],[5,3,8,3],[1,25,1,26],[2,25,2,26],[3,25,3,26],[7,8,8,8],[7,9,8,9],[5,21,8,21],[5,22,7,24],[5,25,7,26]]}
[]
[null,"Partneris",null,null,"PVN",null,21,21,null,null,null,null,null,21,21,12,12,5,5,21,21,null,"Orderis",null,null,"PvnNr",null,{"$f":"'Sakuma lapa'!$D$2","v":0}]
[null,null,null,{"$f":"VLOOKUP($B$3,'Sakuma lapa'!$D$7:$I$16,4,0)","v":{"$error":"#N/A"}},"Debets -->",{"$f":"VLOOKUP(\"POS\",'Sakuma lapa'!$G$19:$H$24,2,0)","v":0},{"$f":"VLOOKUP(\"DK_SAVAS\",'Sakuma lapa'!$G$19:$H$24,2,0)","v":0},{"$f":"VLOOKUP(\"PVN\",'Sakuma lapa'!$G$19:$H$24,2,0)","v":0},{"$f":"VLOOKUP(\"DK_CITI\",'Sakuma lapa'!$G$19:$H$24,2,0)","v":0},{"$f":"VLOOKUP(\"DT\",'Sakuma lapa'!$G$19:$H$24,2,0)","v":0},null,{"$f":"IFERROR(VLOOKUP($B$3,'Sakuma lapa'!$D$7:$I$16,4,0),0)","v":0},null,{"$f":"IFERROR(VLOOKUP($B$3,'Sakuma lapa'!$D$7:$I$16,4,0),0)","v":0},{"$f":"IFERROR(VLOOKUP($B$3,'Sakuma lapa'!$D$7:$I$16,4,0),0)","v":0},{"$f":"IFERROR(VLOOKUP($B$3,'Sakuma lapa'!$D$7:$I$16,4,0),0)","v":0},{"$f":"IFERROR(VLOOKUP($B$3,'Sakuma lapa'!$D$7:$I$16,4,0),0)","v":0},{"$f":"IFERROR(VLOOKUP($B$3,'Sakuma lapa'!$D$7:$I$16,4,0),0)","v":0},{"$f":"IFERROR(VLOOKUP($B$3,'Sakuma lapa'!$D$7:$I$16,4,0),0)","v":0},{"$f":"IFERROR(VLOOKUP($B$3,'Sakuma lapa'!$D$7:$I$16,4,0),0)","v":0},{"$f":"IFERROR(VLOOKUP($B$3,'Sakuma lapa'!$D$7:$I$16,4,0),0)","v":0},null,{"$f":"IFERROR(VLOOKUP($B$3,'Sakuma lapa'!$D$7:$I$16,5,0),0)","v":0},{"$f":"VLOOKUP(\"DT\",'Sakuma lapa'!$G$19:$H$24,2,0)","v":0},null,"Struktūrvienība",null,{"$f":"VLOOKUP($B$3,'Sakuma lapa'!$D$7:$I$16,3,0)","v":{"$error":"#N/A"}}]
[null,null,null,{"$f":"VLOOKUP($B$3,'Sakuma lapa'!$D$7:$I$16,5,0)","v":{"$error":"#N/A"}},"Kredīts -->",{"$f":"IFERROR(VLOOKUP($B$3,'Sakuma lapa'!$D$7:$I$16,4,0),0)","v":0},{"$f":"IFERROR(VLOOKUP($B$3,'Sakuma lapa'!$D$7:$I$16,4,0),0)","v":0},{"$f":"IFERROR(VLOOKUP($B$3,'Sakuma lapa'!$D$7:$I$16,4,0),0)","v":0},{"$f":"IFERROR(VLOOKUP($B$3,'Sakuma lapa'!$D$7:$I$16,4,0),0)","v":0},{"$f":"IFERROR(VLOOKUP($B$3,'Sakuma lapa'!$D$7:$I$16,4,0),0)","v":0},null,{"$f":"VLOOKUP(\"DT\",'Sakuma lapa'!$G$19:$H$24,2,0)","v":0},null,{"$f":"VLOOKUP(\"REALIZ\",'Sakuma lapa'!$G$19:$H$24,2,0)","v":0},{"$f":"VLOOKUP(\"PVN\",'Sakuma lapa'!$G$19:$H$24,2,0)","v":0},{"$f":"VLOOKUP(\"REALIZ\",'Sakuma lapa'!$G$19:$H$24,2,0)","v":0},{"$f":"VLOOKUP(\"PVN\",'Sakuma lapa'!$G$19:$H$24,2,0)","v":0},{"$f":"VLOOKUP(\"REALIZ\",'Sakuma lapa'!$G$19:$H$24,2,0)","v":0},{"$f":"VLOOKUP(\"PVN\",'Sakuma lapa'!$G$19:$H$24,2,0)","v":0},{"$f":"VLOOKUP(\"DK_SAVAS\",'Sakuma lapa'!$G$19:$H$24,2,0)","v":0},{"$f":"VLOOKUP(\"PVN\",'Sakuma lapa'!$G$19:$H$24,2,0)","v":0},null,{"$f":"IFERROR(VLOOKUP($B$3,'Sakuma lapa'!$D$7:$I$16,4,0),0)","v":0},{"$f":"IFERROR(VLOOKUP($B$3,'Sakuma lapa'!$D$7:$I$16,4,0),0)","v":0},null,"Ordera partneris",null,{"$f":"VLOOKUP($B$3,'Sakuma lapa'!$D$7:$I$16,6,0)","v":{"$error":"#N/A"}}]
[]
[null,"Datums","Z \npārskata \nnumurs","Nedzēšamās \nelektroniskās \natmiņas \nkopsumma","Energoneatkarīgajā atmiņā reģistrēto Grand Total vērtība",null,null,null,null,null,null,"Dienas  (z pārskata perioda ) ieņēmumu summa",null,null,null,null,null,null,null,"Sadalījums pa nodaļām",null,"Maiņas \nnauda","Inkasētā nauda",null,null,"Inf. par \napkalp.\n dienesta izs.",null,"Atbidīgas personas \nV. Uzvārds"]
[null,null,null,null,"skaidrā \nnaudā","bezskaidrā\n naudā","Atprečošana",null,null,null,"kopēja\n summa","ar PVN \nneapliekamo\n darījumu \nkopsumma","ar PVN 0% \nlikmi \napliekamo \ndarījumu \nkopsumma","ar PVN 21 % \napliekamie darījumi",null,"ar PVN 12% \napliekamie \ndarījumi",null,"ar PVN 5% \napliekamie \ndarījumi",null,"DK pādošana \n(ar PVN 21 %)"]
[null,null,null,null,null,null,"DK \"savas\"",null,"DK \n\"citi\"","DT \nkupons"]
[null,null,null,null,null,null,"summa \nbez PVN","PVN 21%\n summa",null,null,null,null,null,"summa \nbez PVN","PVN 21%\n summa","summa \nbez PVN","PVN 12%\n summa","summa \nbez PVN","PVN 5% \nsumma","summa \nbez PVN","PVN 21%\n summa",null,"iemaksātā \nsumma","neiemaksātā \nsumma","maiņas \nnauda","datums","laiks"]
[null,1,2,3,4,5,6,6,7,8,9,10,11,12,13,14,15,16,17,18,18,19,20,21,22,null,null,null,null,"Kontēt","Nekontēt","Orderis","Kontrole"]
[null,"KOPĀ: ",null,null,{"$f":"SUM(E12:E1048576)","v":0},0,0,0,0,0,0,0,0,0,0,0,0,0,0,0,0,null,{"$f":"SUM(W12:W1048576)","v":0},{"$f":"SUM(X12:X1048576)","v":0},null,null,null,null,null,{"$f":"SUM(AD12:AD1048576)","v":0},{"$f":"SUM(AE12:AE1048576)","v":0},{"$f":"SUM(AF12:AF1048576)","v":0},{"$f":"SUM(AG12:AG1048576)","v":0}]
[null,null,null,null,null,null,null,null,null,null,{"$f":"SUM(E12:J12)","v":0},null,null,null,null,null,null,null,null,null,null,null,null,null,{"$f":"V12+E12-W12-X12","v":0},null,null,null,null,{"$f":"SUMIFS($F12:$Y12,$F$3:$Y$3,$D$3)","v":0},{"$f":"SUMIFS($F12:$Y12,$F$3:$Y$3,\"<>\"&$D$3,$F$3:$Y$3,\"<>\"&$D$4,$F$3:$Y$3,\"<>\"&\"\")","v":0},{"$f":"SUMIFS($F12:$Y12,$F$3:$Y$3,$D$4)","v":0},{"$f":"AD12-SUM(AE12:AF12)","v":0}]
[null,null,null,null,null,null,null,null,null,null,0,null,null,null,null,null,null,null,null,null,null,null,null,null,0,null,null,null,null,{"$f":"SUMIFS($F13:$Y13,$F$3:$Y$3,$D$3)","v":0},{"$f":"SUMIFS($F13:$Y13,$F$3:$Y$3,\"<>\"&$D$3,$F$3:$Y$3,\"<>\"&$D$4,$F$3:$Y$3,\"<>\"&\"\")","v":0},{"$f":"SUMIFS($F13:$Y13,$F$3:$Y$3,$D$4)","v":0},{"$f":"AD13-SUM(AE13:AF13)","v":0}]
[null,null,null,null,null,null,null,null,null,null,0,null,null,null,null,null,null,null,null,null,null,null,null,null,0,null,null,null,null,0,0,0,0]
[null,null,null,null,null,null,null,null,null,null,{"$f":"SUM(E15:J15)","v":0},null,null,null,null,null,null,null,null,null,null,null,null,null,0,null,null,null,null,0,0,0,0]
[null,null,null,null,null,null,null,null,null,null,0,null,null,null,null,null,null,null,null,null,null,null,null,null,0,null,null,null,null,0,0,0,0]
[null,null,null,null,null,null,null,null,null,null,0,null,null,null,null,null,null,null,null,null,null,null,null,null,0,null,null,null,null,0,0,0,0]
[null,null,null,null,null,null,null,null,null,null,0,null,null,null,null,null,null,null,null,null,null,null,null,null,0,null,null,null,null,0,0,0,0]
[null,null,null,null,null,null,null,null,null,null,0,null,null,null,null,null,null,null,null,null,null,null,null,null,0,null,null,null,null,0,0,0,0]
[null,null,null,null,null,null,null,null,null,null,0,null,null,null,null,null,null,null,null,null,null,null,null,null,0,null,null,null,null,0,0,0,0]
[null,null,null,null,null,null,null,null,null,null,0,null,null,null,null,null,null,null,null,null,null,null,null,null,0,null,null,null,null,0,0,0,0]
[null,null,null,null,null,null,null,null,null,null,0,null,null,null,null,null,null,null,null,null,null,null,null,null,0,null,null,null,null,0,0,0,0]
[null,null,null,null,null,null,null,null,null,null,0,null,null,null,null,null,null,null,null,null,null,null,null,null,0,null,null,null,null,0,0,0,0]
[null,null,null,null,null,null,null,null,null,null,0,null,null,null,null,null,null,null,null,null,null,null,null,null,0,null,null,null,null,0,0,0,0]
[null,null,null,null,null,null,null,null,null,null,0,null,null,null,null,null,null,null,null,null,null,null,null,null,0,null,null,null,null,0,0,0,0]
[null,null,null,null,null,null,null,null,null,null,0,null,null,null,null,null,null,null,null,null,null,null,null,null,0,null,null,null,null,0,0,0,0]

{"sheet":"ZurTmp","index":2,"n_rows":28,"n_cols":26,"rows_kept":28,"cut":false,"hidden":true,"merged":[[27,1,27,2],[27,3,27,25],[4,23,6,24],[4,20,6,22],[4,4,4,9],[5,9,7,9],[5,5,7,5],[5,4,7,4],[5,6,5,8],[6,6,7,6],[4,19,7,19],[6,7,7,7],[6,8,7,8],[1,1,2,1],[1,2,2,6],[4,18,6,18],[4,25,7,25],[5,10,7,10],[5,11,7,11],[5,12,6,13],[5,14,6,15],[5,16,6,17],[4,1,7,1],[4,2,7,2],[4,3,7,3],[4,10,4,17],[1,10,1,25],[2,10,2,25]]}
[]
[null,"KASE",null,null,null,null,null,null,null,null,"KASES APARĀTA, KASES SISTĒMAS, TIRZDNIECĪBAS AUTOMĀTA ŽURNĀLS"]
[null,null,null,null,null,null,null,null,null,null,{"$f":"\"no \"&TEXT($B$10,\"DD.MM.YYYY.\")&\" līdz \"&TEXT(LARGE($B$10:$B$25,1),\"DD.MM.YYYY.\")","v":"no 11.01.1900. līdz 26.01.1900."}]
[]
[null,"Datums","Z \npārskata \nnumurs","Nedzēšamās \nelektroniskās \natmiņas \nkopsumma","Energoneatkarīgajā atmiņā reģistrēto Grand Total vērtība",null,null,null,null,null,"Dienas  (z pārskata perioda ) ieņēmumu summa",null,null,null,null,null,null,null,"Sadalījums pa nodaļām DK pādošana","Maiņas \nnauda","Inkasētā nauda",null,null,"Inf. par apkalp.\n dienesta izs.",null,"Atbidīgas personas \nV. Uzvārds"]
[null,null,null,null,"skaidrā \nnaudā","bezskaidrā\n naudā","Atprečošana",null,null,"kopēja\n summa","ar PVN \nneapliekamo\n darījumu \nkopsumma","ar PVN 0% \nlikmi \napliekamo \ndarījumu \nkopsumma","ar PVN 21 % \napliekamie\n darījumi",null,"ar PVN 12% \napliekamie \ndarījumi",null,"ar PVN 5% \napliekamie \ndarījumi"]
[null,null,null,null,null,null,"DK \n\"savas\"","DK \n\"citi\"","DT \nkupons"]
[null,null,null,null,null,null,null,null,null,null,null,null,"summa \nbez PVN","PVN 21%\n summa","summa \nbez PVN","PVN 12%\n summa","summa \nbez PVN","PVN 5% \nsumma","Kopsumma",null,"iemaksātā \nsumma","neiemaksātā \nsumma","maiņas \nnauda","datums","laiks"]
[null,1,2,3,4,5,6,7,8,9,10,11,12,13,14,15,16,17,18,19,20,21,22]
[null,"1900-01-11",null,null,null,null,null,null,null,{"$f":"SUM(E10:I10)","v":0},null,null,null,null,null,null,null,null,null,null,{"$f":"E10-V10","v":0},null,{"$f":"T10+E10-U10-V10","v":0}]
[null,{"$f":"B10+1","v":"1900-01-12"},null,{"$f":"D10+J11","v":0},null,null,null,null,null,0,null,null,null,null,null,null,null,null,null,{"$f":"W10","v":0},{"$f":"E11-V11","v":0},null,0]
[null,"1900-01-13",null,0,null,null,null,null,null,0,null,null,null,null,null,null,null,null,null,{"$f":"W11","v":0},0,null,0]
[null,"1900-01-14",null,0,null,null,null,null,null,0,null,null,null,null,null,null,null,null,null,{"$f":"W12","v":0},0,null,0]
[null,"1900-01-15",null,0,null,null,null,null,null,0,null,null,null,null,null,null,null,null,null,0,0,null,0]
[null,"1900-01-16",null,0,null,null,null,null,null,0,null,null,null,null,null,null,null,null,null,0,0,null,0]
[null,"1900-01-17",null,0,null,null,null,null,null,0,null,null,null,null,null,null,null,null,null,0,0,null,0]
[null,"1900-01-18",null,0,null,null,null,null,null,0,null,null,null,null,null,null,null,null,null,0,0,null,0]
[null,"1900-01-19",null,{"$f":"D17+J18","v":0},null,null,null,null,null,{"$f":"SUM(E18:I18)","v":0},null,null,null,null,null,null,null,null,null,0,0,null,0]
[null,"1900-01-20",null,0,null,null,null,null,null,0,null,null,null,null,null,null,null,null,null,0,0,null,0]
[null,"1900-01-21",null,0,null,null,null,null,null,0,null,null,null,null,null,null,null,null,null,0,0,null,0]
[null,"1900-01-22",null,0,null,null,null,null,null,0,null,null,null,null,null,null,null,null,null,0,0,null,0]
[null,"1900-01-23",null,0,null,null,null,null,null,0,null,null,null,null,null,null,null,null,null,0,0,null,0]
[null,"1900-01-24",null,0,null,null,null,null,null,0,null,null,null,null,null,null,null,null,null,0,0,null,0]
[null,"1900-01-25",null,0,null,null,null,null,null,0,null,null,null,null,null,null,null,null,null,0,0,null,0]
[null,"1900-01-26",null,0,null,null,null,null,null,0,null,null,null,null,null,null,null,null,null,0,0,null,0]
[null,"KOPĀ: ",null,null,{"$f":"SUM(E10:E25)","v":0},0,0,0,0,0,0,0,0,0,0,0,0,0,0,null,{"$f":"SUM(U10:U25)","v":0},{"$f":"SUM(V10:V25)","v":0}]
[]
[null,"Kasiera piezimes"]

{"sheet":"Formats","index":3,"n_rows":12,"n_cols":33,"rows_kept":12,"cut":false,"hidden":true,"merged":[]}
[]
[null,"Ieņēm.ord."]
[]
[]
[]
[]
[]
[]
[]
[]
["Kase"]
[null,null,null,null,null,null,null,null,null,null,{"$f":"SUM(E12:J12)","v":0},null,null,null,null,null,null,null,null,null,null,null,null,null,{"$f":"V12+E12-W12-X12","v":0},null,null,null,null,{"$f":"SUMIFS($F12:$Y12,$F$3:$Y$3,$D$3)","v":0},{"$f":"SUMIFS($F12:$Y12,$F$3:$Y$3,\"<>\"&$D$3,$F$3:$Y$3,\"<>\"&$D$4,$F$3:$Y$3,\"<>\"&\"\")","v":0},{"$f":"SUMIFS($F12:$Y12,$F$3:$Y$3,$D$4)","v":0},{"$f":"AD12-SUM(AE12:AF12)","v":0}]

{"sheet":"Tiesibas","index":4,"n_rows":18,"n_cols":15,"rows_kept":18,"cut":false,"hidden":true,"merged":[]}
[]
[null,null,null,"DatumsNo","2025-09-09",null,null,"TisWbName","ThisWbCustId","RN","ActivationDate","CompName/Path","Processor/HddSerialId","PROCESSOR_REVISION","USERNAME"]
[null,null,null,"DatumsLidz","2025-09-20",null,null,"KIMP",1,25,"2020-09-09","-","-","-","-"]
[null,null,null,"Skaitītājs (demo versijai)"]
[]
[null,null,null,"ThisWbName","KIMP"]
[null,null,null,"ThisWbCustId",1]
[null,null,null,"Limenis","D"]
[]
[null,null,null,"Nesakonfigurētas tiesības!"]
[null,null,null,"Nesakonfigurētas tiesības versijai!"]
[null,null,null,"Versijas periods ir beidzies!"]
[null,null,null,"Versijas apstrādes uzņēmuma RegNr neatbilst definētam!"]
[null,null,null,"Izvelētais RegNr nav definēts šajā versijā!"]
[null,null,null,"Lūdzu aizpildiet reģistrācijas numuru!"]
[null,null,null,"Versijas Importa/Eksporta skaits sasniedza 20!"]
[null,null,null,"Lūdzu veikt faila aktivāciju uz lapas \"Instrukcija\"!"]
[null,null,null,"Fails jau ir aktivizēts šim datoram un lietotājam!"]